[Event "Icelandic Chess-ch 2023"]
[Site "Hafnarfjordur"]
[Date "2023.05.21"]
[Round "7.2"]
[White "Heimisson, Hilmir Freyr"]
[Black "Thorfinnsson, Bragi"]
[Result "1-0"]
[ECO "D02"]
[WhiteElo "2353"]
[BlackElo "2431"]
[Annotator "TA"]
[PlyCount "149"]
[EventDate "2023.05.13"]
[EventType "tourn"]
[EventCountry "ISL"]
[SourceTitle "playchess.com"]
[Source "ChessBase"]
[SourceQuality "1"]
[TimeControl "40/5400+30:1800+30"]

{[%evp 16,149,33,29,27,22,37,32,39,17,47,44,72,36,31,36,32,29,31,41,47,49,37,42,60,64,84,89,80,93,76,72,78,71,98,59,58,70,155,100,98,95,214,211,312,324,448,443,380,58,65,66,49,62,155,163,145,145,143,152,164,163,125,97,163,151,188,185,195,139,139,138,191,170,168,110,243,232,315,279,287,279,298,268,306,277,208,0,325,285,376,367,347,335,337,318,368,344,404,489,550,535,532,446,593,418,462,0,600,510,525,481,621,585,585,611,627,629,573,562,560,507,675,616,661,1478,1375,935,12831,11947,12835,12836,12839,12839,12837,8884]} 1. e4 {[%emt 0:02:44]} c6 {[%emt 0:00:23]} 2. d4 {[%emt 0:00:07]} g6 {[%emt 0:00:04]} 3. Nf3 {[%emt 0:07:10]} d5 {[%emt 0:00:07]} 4. exd5 {[%emt 0:03:51]} cxd5 {[%emt 0:00:50]} 5. Bf4 {[%emt 0:00:33]} Bg7 {[%emt 0:01:02]} 6. Be2 {[%emt 0:09:13]} Nc6 {[%emt 0:01:35]} 7. O-O {[%emt 0:02:19]} Nf6 {[%emt 0:04:31]} 8. h3 {[%emt 0:09:43]} O-O {[%emt 0:00:53]} 9. c3 {[%emt 0:00:24]} Bf5 {[%emt 0:01:12] D02: 1 d4 d5 2 Nf3 sidelines, including 2...Nf6 3 g3 and 2...Nf6 3 Bf4.} 10. Nbd2 {[%emt 0:02:16][%cal Bb1d2,Bd2f1,Bf1e3][%mdl 32]} Rc8 {[%emt 0:03:59]} 11. Re1 {[%emt 0:07:37]} Ne4 {[%emt 0:04:26] White is slightly better.} 12. Nf1 {[%emt 0:00:21] [#]} Na5 $146 {[%emt 0:12:36]} (12... e5 {is more complex.} 13. Nxe5 Nxe5 14. dxe5 Qb6) ({Predecessor:} 12... f6 13. Ne3 e5 14. Bh2 Be6 15. c4 Ne7 16. cxd5 Nxd5 17. Bc4 Nc7 18. Qb3 Qe7 19. Qxb7 Nd6 20. Bxe6+ Qxe6 21. Qxa7 e4 22. d5 Nxd5 23. Nd4 {1-0 Quinones Borda,J (1954)-Mantau,J (2076) Remote S7E Starter-43 email 2013}) 13. Ne3 {[%emt 0:00:59]} Be6 {[%emt 0:01:00]} 14. Ng5 {[%emt 0:01:00]} Nxg5 {[%emt 0:04:08]} 15. Bxg5 {[%emt 0:01:47]} f6 {[%emt 0:03:40]} 16. Bf4 {[%emt 0:01:56]} Bf7 {[%emt 0:04:35]} 17. Ng4 {[%emt 0:04:59]} g5 {[%emt 0:06:45]} 18. Bh2 {[%emt 0:00:41]} Nc4 {[%emt 0:01:14]} 19. Qb3 {[%emt 0:01:44]} Qd7 {[%emt 0:05:35]} 20. Bd3 {[%emt 0:00:29][%cal Be2d3,Bd3e4,Be4f3][%mdl 32]} Rc6 {[%emt 0:06:46]} 21. Qc2 {[%emt 0:00:39]} h6 {[%emt 0:00:37]} 22. Ne3 {[%emt 0:03:23]} Rb6 {[%emt 0:03:28]} 23. Nxc4 {[%emt 0:12:50]} dxc4 {[%emt 0:00:17]} 24. Be4 {[%emt 0:00:15]} a5 {[%emt 0:03:31]} 25. Bf3 {[%emt 0:01:28]} e6 {[%emt 0:01:24]} 26. Rad1 {[%emt 0:01:40]} Qb5 {[%emt 0:05:37]} (26... a4 $14) 27. Rd2 {[%emt 0:01:45]} ({Better is} 27. Bc7) 27... a4 {[%emt 0:02:12]} 28. a3 {[%emt 0:01:19] White has more active pieces.} Ra8 {[%emt 0:00:24]} (28... Ra6 $16) 29. Bc7 $18 {[%emt 0:06:41]} Rba6 {[%emt 0:00:11] [#]} (29... Rc6 $142) 30. d5 $1 {[%emt 0:01:00][%mdl 512]} exd5 {[%emt 0:02:23]} (30... Rf8 31. d6) 31. Re7 {[%emt 0:00:06] Repels Qd7} Re8 {[%emt 0:06:23]} 32. Rxe8+ {[%emt 0:00:46]} ({Stronger than} 32. Rde2 Rxe7 33. Rxe7 Re6 34. Rxe6 Bxe6 $15) (32. Rxf7 $1 $18 {Threatening mate with Qg6.} Kxf7 33. Bxd5+ (33. Bh5+ Kg8 $14) 33... Kf8 34. Qh7) 32... Qxe8 $14 {[%emt 0:00:21]} 33. Bxd5 {[%emt 0:00:10]} Bxd5 {[%emt 0:01:51]} 34. Rxd5 {[%emt 0:00:07] Rd8 is the strong threat.} Ra8 {[%emt 0:00:01] Prevents Rd8} (34... Bf8 $14) 35. Qf5 $1 $16 {[%emt 0:03:39]} Qe1+ {[%emt 0:02:07]} 36. Kh2 {[%emt 0:00:09]} Re8 {[%emt 0:00:16]} 37. Rb5 {[%emt 0:08:27]} ({Of course not} 37. Rd7 $6 Qe6 38. Qb5 Qc6 $11) 37... Qe4 {[%emt 0:02:36]} 38. Qxe4 {[%emt 0:00:38]} Rxe4 {[%emt 0:00:04]} 39. Rxb7 $18 {[%emt 0:00:30][%mdl 4096] Endgame KRB-KRB} Re2 {[%emt 0:03:18]} (39... Bf8 $16 {might work better.}) 40. Kg3 {[%emt 0:02:08]} Bf8 {[%emt 0:00:36]} 41. Rb5 {[%emt 0:04:56] Against Bc5} Kf7 {[%emt 0:01:19] [#]} 42. Kf3 {[%emt 0:00:15]} (42. Bb6 $1 $18) 42... Re1 $16 {[%emt 0:02:37]} 43. g4 {[%emt 0:06:55]} Be7 {[%emt 0:07:01]} (43... Rb1 $16) 44. Bg3 {[%emt 0:04:32]} Kg6 {[%emt 0:02:20]} 45. h4 {[%emt 0:01:46]} ({White should play} 45. Rb8 $18) 45... Kf7 {[%emt 0:10:28]} (45... gxh4 $16 46. Bxh4 Rb1) 46. h5 $18 {[%emt 0:00:30]} Ke6 {[%emt 0:00:06]} 47. Rb8 {[%emt 0:00:38]} Kf7 {[%emt 0:00:15]} 48. Rb7 {[%emt 0:00:45]} Ke6 {[%emt 0:00:14] Repels Bd6} 49. Rb6+ {[%emt 0:00:06]} Kf7 {[%emt 0:00:53]} 50. Rb8 {[%emt 0:00:02]} Ke6 {[%emt 0:01:56]} 51. Rb6+ {[%emt 0:02:55]} (51. Ra8 $142) 51... Kf7 $1 {[%emt 0:00:12]} 52. Bb8 {[%emt 0:00:36]} Bd8 {[%emt 0:04:55]} 53. Rb7+ {[%emt 0:00:18]} Ke6 {[%emt 0:00:05]} 54. Rb5 {[%emt 0:01:12]} Be7 {[%emt 0:02:59]} 55. Ba7 {[%emt 0:03:32]} Re5 {[%emt 0:04:53]} 56. Rb8 {[%emt 0:08:17]} Kf7 {[%emt 0:02:30]} 57. Bd4 {[%emt 0:00:16]} Re1 {[%emt 0:00:37]} 58. Rb6 {[%emt 0:00:15]} Rg1 {[%emt 0:00:20]} 59. Be3 {[%emt 0:00:31]} Ke8 {[%emt 0:00:50]} 60. Rb8+ {[%emt 0:02:19]} Kf7 {[%emt 0:00:06]} 61. Rb6 {[%emt 0:00:03]} Ke8 $1 {[%emt 0:00:20]} 62. Re6 {[%emt 0:01:20] Bc5 would be deadly. White is clearly winning.} Kf7 {[%emt 0:00:25]} 63. Re4 {[%emt 0:00:24]} Rb1 {[%emt 0:00:18]} 64. Rxc4 {[%emt 0:00:23]} Rxb2 {[%emt 0:00:04]} 65. Rxa4 {[%emt 0:00:06]} Rb3 {[%emt 0:00:20]} 66. Ra7 {[%emt 0:01:43]} Rxc3 {[%emt 0:00:41]} 67. a4 {[%emt 0:00:14][%cal Ba3a4,Ba4a5,Ba5a6,Ba6a7][%mdl 32]} Ke6 {[%emt 0:01:32]} 68. Ra6+ {[%emt 0:00:01]} Kd5 {[%emt 0:00:14]} 69. Ra8 {[%emt 0:00:27] Prevents Bd8. Threatens to win with a5.} Ra3 {[%emt 0:00:23]} 70. a5 {[%emt 0:01:18]} Bc5 {[%emt 0:01:44] [#]} 71. a6 $1 {[%emt 0:00:05] Hoping for a7.} Bb6 {[%emt 0:00:48]} 72. a7 {[%emt 0:00:58]} Kd6 {[%emt 0:00:16]} 73. Ke4 {[%emt 0:00:31]} Kc7 {[%emt 0:00:31]} 74. Bxb6+ {[%emt 0:00:49]} Kxb6 {[%emt 0:00:04]} 75. Rf8 {[%emt 0:00:19] Weighted Error Value: White=0.23 (precise) /Black=0.30} 1-0

[Event "Icelandic Chess-ch 2023"]
[Site "Hafnarfjordur"]
[Date "2023.05.21"]
[Round "7.3"]
[White "Gretarsson, Hjorvar Steinn"]
[Black "Ingvason, Johann"]
[Result "1-0"]
[ECO "D11"]
[WhiteElo "2539"]
[BlackElo "2076"]
[Annotator "TA"]
[PlyCount "95"]
[EventDate "2023.05.13"]
[EventType "tourn"]
[EventCountry "ISL"]
[SourceTitle "playchess.com"]
[Source "ChessBase"]
[SourceQuality "1"]
[TimeControl "40/5400+30:1800+30"]

{[%evp 9,95,4,14,12,53,33,30,23,29,14,9,12,20,-3,6,0,0,-50,59,-8,29,36,40,54,34,18,105,97,102,106,98,99,108,116,117,120,122,127,252,247,302,320,301,312,291,286,305,312,306,303,452,377,629,439,771,638,760,751,861,867,1074,1065,1438,1408,1921,1730,2068,1853,1986,1798,2197,1834,3523,2740,5377,5125,2204,1590,1773,1713,2119,1464,29975,29975,29992,29993,29993,29994]} 1. d4 {[%emt 0:00:15]} d5 {[%emt 0:00:06]} 2. c4 {[%emt 0:00:04]} c6 {[%emt 0:00:04]} 3. Nf3 {[%emt 0:00:04]} Nf6 {[%emt 0:00:06]} 4. g3 {[%emt 0:00:04]} Bf5 {[%emt 0:00:34]} 5. Nc3 {[%emt 0:00:48]} e6 {[%emt 0:00:33]} 6. Nh4 {[%emt 0:00:05] D11: Slav Defence: 3 Nf3 sidelines and 3...Nf6 4 e3 Bg4.} Bg4 {[%emt 0:03:05]} 7. h3 {[%emt 0:03:20]} Bh5 {[%emt 0:00:49]} 8. Qb3 {[%emt 0:04:31] White has an edge.} Qb6 {[%emt 0:00:28]} 9. c5 {[%emt 0:00:44]} Qxb3 {[%emt 0:01:50] has lost popularity (9...Qc7).} 10. axb3 {[%emt 0:00:05]} Be7 {[%emt 0:01:40]} 11. g4 {[%emt 0:06:57]} Nfd7 {[%emt 0:00:58]} 12. Nf3 $36 {[%emt 0:04:45][%mdl 2048] White fights for an advantage.} Bg6 {[%emt 0:00:19] [#]} 13. b4 $146 {[%emt 0:00:10]} (13. Bf4 $11) ({Predecessor:} 13. Bf4 Bc2 14. b4 O-O 15. e3 f6 16. Be2 g5 17. Bg3 f5 18. gxf5 Bxf5 19. Rg1 {1-0 Sodoma,J (2380)-Biolek,R (2464) CZE-chT 1112 2011 (2.6)}) 13... f6 {[%emt 0:00:37]} (13... Na6 $1 $15 14. b5 Nb4) 14. b5 {[%emt 0:03:09]} (14. e3 $1 $14) 14... O-O {[%emt 0:03:23]} 15. e3 {[%emt 0:06:32]} a6 {[%emt 0:05:21]} 16. b6 {[%emt 0:05:46]} Re8 {[%emt 0:15:51]} 17. b4 {[%emt 0:04:02]} Bf8 {[%emt 0:01:31]} (17... e5 $11 {remains equal.}) 18. Bd2 $16 {[%emt 0:04:20] White leaves nothing to chance now.} e5 {[%emt 0:03:42]} 19. Kd1 {[%emt 0:00:58]} (19. Be2 {with more complications.} exd4 20. exd4 Nxb6 21. cxb6 Bxb4 22. Kd1) 19... Bf7 {[%emt 0:09:38]} 20. Rg1 {[%emt 0:02:17]} g6 {[%emt 0:00:26]} 21. Ne1 {[%emt 0:02:17][%cal Bf3e1,Be1c2,Bc2b4][%mdl 32] White is much more active.} Bg7 {[%emt 0:01:17]} 22. Nc2 {[%emt 0:00:45]} Nf8 {[%emt 0:01:12]} 23. b5 {[%emt 0:00:31]} Rd8 {[%emt 0:01:09]} (23... a5 $16) 24. bxa6 $18 {[%emt 0:01:56]} Nxa6 {[%emt 0:01:15]} 25. Bxa6 {[%emt 0:00:26]} bxa6 {[%emt 0:01:30]} 26. Nb4 {[%emt 0:00:21][%csl LRa6,LRc6]} Be8 {[%emt 0:00:30]} 27. Rxa6 {[%emt 0:00:29]} f5 {[%emt 0:01:14]} 28. Ne2 {[%emt 0:01:37]} fxg4 {[%emt 0:03:15]} 29. hxg4 {[%emt 0:00:26]} (29. Rxg4 $6 Bd7 30. Rg3 Rxa6 31. Nxa6 Bc8 $18) 29... Ne6 {[%emt 0:05:32]} (29... Nd7 $142 30. Rxa8 (30. Nxc6 Nxc5 31. Nxd8 Nxa6 $16) 30... Rxa8) 30. Bc3 {[%emt 0:01:00] [#] Rxa8 would be deadly.} h6 $2 {[%emt 0:04:05]} (30... Bf8 31. b7 (31. dxe5 Nxc5 32. Rxa8 Rxa8 $14) 31... Rab8 32. Nxc6 Bxc6 33. Rxc6 Re8) 31. Kc2 {[%emt 0:00:54]} ({Weaker is} 31. dxe5 Nxc5 32. Rxa8 (32. Ra7 Rxa7 33. bxa7 Ra8 $11) 32... Rxa8 $16) 31... Kh7 {[%emt 0:00:41]} (31... exd4 $142 32. Bxd4 g5 33. Rxa8 Rxa8 34. Bxg7 Bg6+ 35. Kc3 Nxc5) 32. Rga1 {[%emt 0:00:48]} Rxa6 {[%emt 0:04:04]} 33. Nxa6 {[%emt 0:00:38]} Rd7 {[%emt 0:00:27]} 34. dxe5 {[%emt 0:00:25]} h5 {[%emt 0:01:24]} 35. Nd4 {[%emt 0:00:49]} Nd8 {[%emt 0:00:22]} 36. Nc7 {[%emt 0:00:29]} Re7 {[%emt 0:03:13]} 37. Ra8 {[%emt 0:00:13]} Nb7 {[%emt 0:00:53]} 38. Rxe8 {[%emt 0:00:17]} Rxe8 {[%emt 0:00:07]} 39. Nxe8 {[%emt 0:00:05]} Bxe5 {[%emt 0:00:21]} 40. gxh5 {[%emt 0:00:22]} gxh5 {[%emt 0:00:05]} 41. f4 {[%emt 0:30:10]} Bh8 {[%emt 0:31:49]} 42. Ne6 {[%emt 0:01:38]} Bxc3 {[%emt 0:02:00]} 43. Kxc3 {[%emt 0:00:17] [#] Intending Nd6 and mate.} h4 {[%emt 0:00:10]} 44. Kd4 {[%emt 0:00:56]} Kg6 {[%emt 0:00:19]} 45. Ng5 {[%emt 0:00:08] White wants to mate with Nd6.} Nd8 {[%emt 0:03:26]} 46. Nd6 {[%emt 0:00:56] White mates.} Ne6+ {[%emt 0:00:09]} 47. Nxe6 {[%emt 0:00:09]} h3 {[%emt 0:00:03]} 48. b7 {[%emt 0:00:11] Weighted Error Value: White=0.28 (precise) /Black=0.49} 1-0

[Event "Icelandic Chess-ch 2023"]
[Site "Hafnarfjordur"]
[Date "2023.05.21"]
[Round "7.4"]
[White "Hjartarson, Johann"]
[Black "Domalchuk-Jonasson, Aleksandr"]
[Result "0-1"]
[ECO "B90"]
[WhiteElo "2466"]
[BlackElo "2338"]
[Annotator "TA"]
[PlyCount "90"]
[EventDate "2023.05.13"]
[EventType "tourn"]
[EventCountry "ISL"]
[SourceTitle "playchess.com"]
[Source "ChessBase"]
[SourceQuality "1"]
[TimeControl "40/5400+30:1800+30"]

{[%evp 13,90,14,21,23,3,18,3,22,34,24,27,32,29,13,21,20,8,18,17,18,28,0,14,11,6,29,59,61,66,79,83,85,150,60,50,43,70,77,82,71,110,72,91,0,0,0,196,-43,-22,-33,-35,-95,-99,-104,-110,-110,-119,-210,-202,-200,-200,-184,-190,-349,-349,-664,-664,-647,-615,-612,-584,-914,-902,-1409,-1331,-1225,-1130,-982,-952]} 1. e4 {[%emt 0:01:04]} c5 {[%emt 0:00:20]} 2. Nf3 {[%emt 0:00:16]} d6 {[%emt 0:00:20]} 3. d4 {[%emt 0:00:05]} cxd4 {[%emt 0:00:04]} 4. Nxd4 {[%emt 0:00:05]} Nf6 {[%emt 0:00:14]} 5. Nc3 {[%emt 0:00:06]} a6 {[%emt 0:01:26]} 6. Be3 {[%emt 0:02:12]} e5 {[%emt 0:00:59]} 7. Nb3 {[%emt 0:00:26]} Be7 {[%emt 0:01:08]} 8. h3 {[%emt 0:00:24] B90: Sicilian Najdorf: Unusual White 6th moves, 6 Be3 Ng4 and 6 Be3 e5.} Be6 {[%emt 0:03:22]} 9. f4 {[%emt 0:01:06]} exf4 {[%emt 0:00:24]} 10. Bxf4 {[%emt 0:00:05] The position is equal.} Nc6 {[%emt 0:00:13]} 11. Qe2 $1 {[%emt 0:00:32]} Ne5 {[%emt 0:02:31]} 12. O-O-O {[%emt 0:02:55] Strongly threatening Bxe5.} Nfd7 {[%emt 0:00:27]} 13. Kb1 {[%emt 0:01:52]} O-O {[%emt 0:03:11]} 14. Qe3 {[%emt 0:01:29]} Rc8 {[%emt 0:07:02]} 15. g4 {[%emt 0:03:47]} b5 {[%emt 0:05:55]} 16. Nd4 {[%emt 0:14:09]} Qc7 $1 {[%emt 0:08:02]} 17. Rh2 {[%emt 0:01:30]} Rfe8 {[%emt 0:07:50]} 18. Qg3 {[%emt 0:04:14]} Bf8 {[%emt 0:06:53] [#]} 19. g5 $146 {[%emt 0:05:34]} ({Predecessor:} 19. Rhd2 Nb6 20. Qg2 Nbc4 21. Bxc4 Nxc4 22. Rd3 Ne5 23. Rg3 Qb7 24. Nf5 Rc5 25. Nd5 {½-½ Oparin,G (2569)-Palac,M (2591) CRO-chT1A 24th 2015 (4.42)}) 19... b4 {[%emt 0:08:43]} 20. Nd5 {[%emt 0:01:05]} Bxd5 {[%emt 0:01:21]} 21. exd5 {[%emt 0:00:07]} Nc5 {[%emt 0:07:18]} 22. h4 {[%emt 0:02:46]} Qb7 {[%emt 0:16:18]} ({Better is} 22... Ne4 23. Qb3 Qb7) 23. Bg2 {[%emt 0:11:51]} ({White should play} 23. Qg2 $1 $16) 23... Nc4 $1 $14 {[%emt 0:04:56]} 24. Bc1 {[%emt 0:20:42] This pair of bishops is nice.} Ne4 {[%emt 0:02:12]} 25. Bxe4 {[%emt 0:01:26]} Rxe4 {[%emt 0:00:04]} 26. Nc6 {[%emt 0:07:12]} Rce8 {[%emt 0:01:43]} 27. Qd3 {[%emt 0:02:45]} g6 {[%emt 0:02:58]} 28. Rf1 {[%emt 0:01:08]} (28. h5 $16) 28... Bg7 $11 {[%emt 0:05:02]} 29. Rhf2 {[%emt 0:05:09][%cal Oh4h5]} Qb5 $2 {[%emt 0:00:09] [#]} (29... Rxh4 $11 {and Black is okay.} 30. b3 Ne5) 30. Qf3 $2 {[%emt 0:01:21]} (30. Rxf7 $6 Ne3 $16) (30. Rf4 $1 $18 {[%cal Rf4e4]} Rxf4 31. Rxf4) 30... Qxd5 $15 {[%emt 0:02:25] Active counter play!} 31. Nxb4 {[%emt 0:00:13]} (31. Qxf7+ $2 Qxf7 32. Rxf7 Re1 $19) 31... Qb7 {[%emt 0:01:10] Some like it hot} 32. Qxf7+ {[%emt 0:02:42]} (32. c3 $1 $15) 32... Qxf7 $17 {[%emt 0:00:04]} 33. Rxf7 {[%emt 0:00:07]} Re1 $36 {[%emt 0:00:28][%mdl 2048] aiming for ...Nd2+. Keeping White busy.} 34. Rxe1 {[%emt 0:03:38]} (34. Nxa6 $2 Nd2+ 35. Ka1 Nxf1 $19) 34... Rxe1 {[%emt 0:00:03]} 35. Rf2 {[%emt 0:00:13] Dodges Nd2+} (35. Rxg7+ $17 {was worth a try.} Kxg7 36. b3) 35... Bd4 $19 {[%emt 0:01:01]} ({Not} 35... Nxb2 36. Nd5 $15) (35... Bxb2 36. Nd3 Bd4 37. Nxe1 $17) 36. Rg2 {[%emt 0:01:29]} Bxb2 {[%emt 0:01:07][%csl Gb2][%cal Re1c1]} ({Stronger than} 36... Nxb2 37. Rg4 Be5 38. Nd3 Nxd3 39. cxd3 $11) 37. Nd3 {[%emt 0:00:11]} Rh1 {[%emt 0:00:10]} 38. Rg4 $2 {[%emt 0:01:16] [#]} (38. Re2 {might work better.}) 38... Ne5 $1 {[%emt 0:00:54]} 39. Nxe5 $2 {[%emt 0:02:11]} (39. Kxb2 Nxg4 40. Bf4) 39... Bxc1 {[%emt 0:00:17][%mdl 4096] Endgame KRB-KRN. Black is clearly winning.} ({Worse is} 39... Bxe5 40. c3 $15) 40. Nf3 {[%emt 0:00:07]} Bxg5+ {[%emt 0:01:06]} 41. Kb2 {[%emt 0:03:01]} Bc1+ {[%emt 0:01:54]} 42. Kb1 {[%emt 0:04:38]} Ba3+ {[%emt 0:01:54]} 43. Rg1 {[%emt 0:00:07]} Rxg1+ {[%emt 0:00:03]} 44. Nxg1 {[%emt 0:00:07]} Kg7 {[%emt 0:00:24]} 45. Ne2 {[%emt 0:03:18]} Kf6 {[%emt 0:02:06] Weighted Error Value: White=0.50/Black=0.12 (very precise)} 0-1

[Event "Icelandic Chess-ch 2023"]
[Site "Hafnarfjordur"]
[Date "2023.05.21"]
[Round "7.5"]
[White "Stefansson, Vignir Vatnar"]
[Black "Danielsen, Henrik"]
[Result "1-0"]
[ECO "D23"]
[WhiteElo "2470"]
[BlackElo "2501"]
[Annotator "TA"]
[PlyCount "81"]
[EventDate "2023.05.13"]
[EventType "tourn"]
[EventCountry "ISL"]
[SourceTitle "playchess.com"]
[Source "ChessBase"]
[SourceQuality "1"]
[TimeControl "40/5400+30:1800+30"]

{[%evp 17,81,0,1,0,16,18,22,20,20,18,22,18,56,50,42,58,50,37,145,150,159,155,160,117,139,127,163,160,161,158,159,136,143,146,155,154,141,146,162,150,182,188,198,179,254,225,264,228,256,252,248,221,220,213,262,246,260,240,296,274,292,277,341,341,333,306]} 1. Nf3 {[%emt 0:00:08]} Nf6 {[%emt 0:01:26]} 2. c4 {[%emt 0:00:14]} c6 {[%emt 0:01:10]} 3. d4 {[%emt 0:03:55]} d5 {[%emt 0:00:24]} 4. Qb3 {[%emt 0:00:11]} dxc4 {[%emt 0:01:14]} 5. Qxc4 {[%emt 0:00:06]} Bf5 {[%emt 0:00:26]} 6. g3 {[%emt 0:00:04]} e6 {[%emt 0:00:32]} 7. Bg2 {[%emt 0:00:07]} Be7 {[%emt 0:01:23]} 8. O-O {[%emt 0:00:09]} Nbd7 {[%emt 0:00:37]} 9. Qb3 {[%emt 0:00:12]} Qb6 {[%emt 0:05:26]} 10. Nbd2 {[%emt 0:00:19][%cal Bb1d2,Bd2c4,Bc4a5,Ba5b7,Bb7c5][%mdl 32] D23: Queen's Gambit Accepted: 3 Nf3 Nf6 sidelines.} h6 {[%emt 0:05:42]} 11. Nc4 {[%emt 0:06:04]} Qxb3 {[%emt 0:12:14]} (11... Qa6 {looks sharper.} 12. Bf4 Nb6 13. Nd6+ Bxd6 14. Bxd6 Qxe2 15. Ne5 Qc2) 12. axb3 {[%emt 0:00:26] The position is equal.} Be4 {[%emt 0:00:47]} 13. Nfe5 {[%emt 0:02:46]} Bxg2 {[%emt 0:00:45]} 14. Kxg2 {[%emt 0:00:09]} O-O {[%emt 0:22:42]} 15. Na5 {[%emt 0:07:15] [#]} c5 $146 {[%emt 0:07:35]} ({Predecessor:} 15... Nxe5 16. dxe5 Nd7 17. Nxb7 Rfb8 18. Na5 Nxe5 19. Bf4 Bf6 20. Bxe5 Bxe5 21. Nxc6 Rb5 22. Nxe5 Rxe5 {1-0 Ivanov,O (2458)-Gallo Garcia,K (2328) Titled Tuesday intern op 26th Jan blitz 2021 (10)}) 16. Nxb7 {[%emt 0:03:45] Strongly threatening Nc6.} cxd4 {[%emt 0:01:41]} 17. Nc6 {[%emt 0:00:16][%csl LRa7,LRd4,LRe7]} Bc5 {[%emt 0:00:29] [#]} (17... Nd5 $14) 18. Nxc5 $1 $16 {[%emt 0:01:58]} Nxc5 {[%emt 0:00:04]} 19. b4 {[%emt 0:01:31]} Ncd7 {[%emt 0:09:22]} 20. Nxd4 {[%emt 0:04:35] White is more active.} Rfb8 {[%emt 0:04:33]} 21. Bd2 {[%emt 0:02:07]} Nd5 {[%emt 0:01:37]} 22. Nc6 {[%emt 0:04:05][%csl LRa7,LRb8][%cal Bd4c6,Bc6e5,Be5d3][%mdl 32]} Rb6 {[%emt 0:05:06]} 23. Rfc1 {[%emt 0:00:52]} ({Don't take} 23. Rxa7 Rxa7 24. Nxa7 Nxb4 $16) (23. Nxa7 N7f6 $16) 23... f5 {[%emt 0:01:01]} 24. Rc4 {[%emt 0:13:12]} ({Don't play} 24. Nxa7 Nxb4 25. Rc7 Nf6 $16) 24... a6 {[%emt 0:01:01]} 25. f3 {[%emt 0:02:18]} Kh7 {[%emt 0:03:48]} 26. b3 {[%emt 0:08:44]} Rc8 {[%emt 0:05:14] [#]} 27. Ne5 {[%emt 0:02:54][%mdl 576] Discovered Attack} Rd8 {[%emt 0:00:37] [#]} (27... Rxc4 28. Nxc4) 28. Nd3 {[%emt 0:01:13]} g5 {[%emt 0:02:15]} 29. Ra5 {[%emt 0:01:24]} Kg6 {[%emt 0:01:12]} 30. h4 {[%emt 0:01:32]} gxh4 {[%emt 0:02:42]} (30... Rd6 {was necessary.} 31. Kg1 Rb8) 31. Rxh4 {[%emt 0:00:15]} Rh8 {[%emt 0:00:28]} 32. Ra1 {[%emt 0:01:26][%cal Ba5a1,Ba1h1,Bh1h4,Bh4d4][%mdl 32]} Rc6 {[%emt 0:00:59]} 33. Kf2 {[%emt 0:03:47]} h5 {[%emt 0:00:51]} 34. Rc4 {[%emt 0:06:05]} Rb6 {[%emt 0:00:18]} 35. Rh1 {[%emt 0:00:38] Black is weak on the dark squares} Rh7 {[%emt 0:00:26]} 36. Rc8 {[%emt 0:00:35]} Kf7 {[%emt 0:00:20]} 37. Rh4 {[%emt 0:01:43]} Ke7 {[%emt 0:01:19]} 38. Bg5+ {[%emt 0:00:35] White has a decisive advantage.} Kf7 {[%emt 0:00:08]} 39. Rd8 {[%emt 0:01:05]} N5f6 {[%emt 0:00:39]} 40. Rd4 {[%emt 0:00:59]} Kg6 {[%emt 0:00:25]} 41. Bh4 {[%emt 0:36:09] Weighted Error Value: White=0.08 (flawless) /Black=0.23 (precise)} 1-0